[Event "World Junior U20 Girls 2018"]
[Site "Gebze"]
[Date "2018.09.07"]
[Round "3"]
[White "Nemcova, Karin"]
[Black "Sade, Defne"]
[Result "0-1"]
[ECO "C45"]
[WhiteElo "1990"]
[BlackElo "1826"]
[Annotator "NA"]
[PlyCount "38"]
[EventDate "2018.09.05"]
[EventType "swiss"]
[EventCountry "TUR"]
[SourceTitle "playchess.com"]
[Source "ChessBase"]
[SourceQuality "1"]
[TimeControl "40/5400+30:1800+30"]

1. e4 e5 2. Nf3 Nc6 3. d4 exd4 4. Nxd4 Bb4+ 5. c3 Bc5 6. Be3 Bb6 7. Nf5 g6 8. Bxb6 axb6 9. Ne3 Nf6 10. f3 O-O 11. c4 d5 12. cxd5 Nxe4 13. fxe4 Qh4+ 14. Kd2 Qxe4 15. Bd3 Qd4 16. Nc3 {[%emt 0:34:00]} Nb4 {[%emt 0:17:00]} 17. Qe2 {[%emt 0:00:30]} Re8 {[%emt 0:00:30]} 18. a3 {[%emt 0:01:30]} Bg4 {[%emt 0:04:30]} 19. Qf2 {[%emt 0:13:30]} Nxd3 {[%emt 0:03:30]} 0-1

[Event "World Junior U20 Girls 2018"]
[Site "Gebze"]
[Date "2018.09.07"]
[Round "3"]
[White "Ayan, Bengu Sena"]
[Black "Nassr, Lina"]
[Result "0-1"]
[ECO "A30"]
[WhiteElo "1976"]
[BlackElo "1854"]
[Annotator "NA"]
[PlyCount "187"]
[EventDate "2018.09.05"]
[EventType "swiss"]
[EventCountry "TUR"]
[SourceTitle "playchess.com"]
[Source "ChessBase"]
[SourceQuality "1"]
[TimeControl "40/5400+30:1800+30"]

1. d4 Nf6 2. c4 e6 3. Nc3 d5 4. Nf3 b6 5. cxd5 Nxd5 6. g3 Bb7 7. Bg2 Be7 8. O-O O-O 9. Re1 {[%emt 0:25:30]} c5 {[%emt 0:36:30]} 10. e4 {[%emt 0:11:30]} Nxc3 {[%emt 0:10:30]} 11. bxc3 {[%emt 0:00:30]} cxd4 {[%emt 0:01:30]} 12. cxd4 {[%emt 0:00:30]} Na6 {[%emt 0:01:30]} 13. Bb2 {[%emt 0:06:30]} Rc8 {[%emt 0:03:30]} 14. a3 {[%emt 0:01:30]} Bf6 {[%emt 0:01:30]} 15. Qe2 {[%emt 0:11:30]} Nc7 {[%emt 0:05:30]} 16. Rad1 {[%emt 0:05:30]} Qe8 {[%emt 0:02:30]} 17. Qd2 {[%emt 0:06:30]} Qa4 {[%emt 0:01:30]} 18. Qd3 {[%emt 0:06:30]} Rfd8 {[%emt 0:02:30]} 19. e5 {[%emt 0:09:51]} Be7 {[%emt 0:00:30]} 20. Ng5 {[%emt 0:02:03]} Bxg5 {[%emt 0:04:30]} 21. Bxb7 {[%emt 0:00:07]} Rb8 {[%emt 0:00:30]} 22. Be4 {[%emt 0:00:30]} g6 {[%emt 0:00:30]} 23. h4 {[%emt 0:00:44]} Be7 {[%emt 0:02:30]} 24. h5 {[%emt 0:01:58]} Kg7 {[%emt 0:04:30]} 25. Kg2 {[%emt 0:01:36]} Qb5 {[%emt 0:02:30]} 26. Qd2 {[%emt 0:01:42]} Nd5 {[%emt 0:03:35]} 27. hxg6 {[%emt 0:02:26]} hxg6 {[%emt 0:00:32]} 28. Rh1 {[%emt 0:01:42]} Rh8 {[%emt 0:00:24]} 29. Bc1 {[%emt 0:02:01]} Qa5 {[%emt 0:01:24]} 30. Qb2 {[%emt 0:01:44]} Nc3 {[%emt 0:03:14]} 31. Rde1 {[%emt 0:01:12]} Nxe4 {[%emt 0:06:26]} 32. Rxe4 {[%emt 0:00:30]} Rxh1 {[%emt 0:00:30]} 33. Kxh1 {[%emt 0:00:30]} Qd5 {[%emt 0:00:30]} 34. f3 {[%emt 0:00:30]} Qc4 {[%emt 0:00:30]} 35. Re1 {[%emt 0:00:30]} Qd3 {[%emt 0:00:30]} 36. Qe2 {[%emt 0:00:30]} Rh8+ {[%emt 0:00:30]} 37. Kg2 {[%emt 0:00:30]} Qxd4 {[%emt 0:00:30]} 38. Bb2 {[%emt 0:00:32]} Qa4 {[%emt 0:01:19]} 39. Rc1 {[%emt 0:00:48]} Bc5 {[%emt 0:02:42]} 40. Qd2 {[%emt 0:00:00]} Qb5 {[%emt 0:00:00]} 41. Rd1 {[%emt 0:09:34]} Be3 {[%emt 0:13:24]} 42. Qxe3 {[%emt 0:03:30]} Qxb2+ {[%emt 0:00:00]} 43. Qd2 {[%emt 0:05:44]} Qxe5 {[%emt 0:02:00]} 44. Re1 {[%emt 0:01:05]} Qf6 {[%emt 0:02:01]} 45. Qc1 {[%emt 0:04:21]} Rh5 {[%emt 0:01:50]} 46. g4 {[%emt 0:05:29]} Rc5 {[%emt 0:02:39]} 47. Qe3 {[%emt 0:00:39]} Rc3 {[%emt 0:03:22]} 48. g5 {[%emt 0:01:14]} Rc2+ {[%emt 0:00:30]} 49. Kg3 {[%emt 0:00:30]} Qc3 {[%emt 0:00:30]} 50. Qe4 {[%emt 0:02:10]} Qc5 {[%emt 0:04:40]} 51. Re2 {[%emt 0:02:23]} Rxe2 {[%emt 0:01:35]} 52. Qxe2 {[%emt 0:00:07]} Qxg5+ {[%emt 0:00:14]} 53. Kf2 {[%emt 0:00:35]} Qc5+ {[%emt 0:00:17]} 54. Kg2 {[%emt 0:00:00]} e5 {[%emt 0:00:23]} 55. Qa6 {[%emt 0:00:06]} b5 {[%emt 0:00:28]} 56. Qa5 {[%emt 0:00:29]} Qb6 {[%emt 0:00:42]} 57. Qc3 {[%emt 0:00:25]} Qd4 {[%emt 0:01:53]} 58. Qc7 {[%emt 0:00:02]} e4 {[%emt 0:01:51]} 59. fxe4 {[%emt 0:00:07]} Qxe4+ {[%emt 0:00:00]} 60. Kg3 {[%emt 0:01:40]} Qe3+ {[%emt 0:00:00]} 61. Kh2 {[%emt 0:00:51]} g5 {[%emt 0:00:38]} 62. Qd7 {[%emt 0:00:31]} Qf4+ {[%emt 0:00:49]} 63. Kg2 {[%emt 0:00:20]} g4 {[%emt 0:01:27]} 64. Qxb5 {[%emt 0:00:16]} g3 {[%emt 0:02:05]} 65. Qb2+ {[%emt 0:00:02]} Qf6 {[%emt 0:00:41]} 66. Qc1 {[%emt 0:01:27]} Qf2+ {[%emt 0:01:37]} 67. Kh3 {[%emt 0:00:00]} Kg6 {[%emt 0:00:21]} 68. Qc6+ {[%emt 0:00:52]} Kg5 {[%emt 0:00:37]} 69. Qc1+ {[%emt 0:00:30]} Qf4 {[%emt 0:00:19]} 70. Qa1 {[%emt 0:01:24]} Qh4+ {[%emt 0:00:58]} 71. Kg2 {[%emt 0:00:30]} Qh2+ {[%emt 0:00:00]} 72. Kf3 {[%emt 0:00:00]} Qf2+ {[%emt 0:00:26]} 73. Ke4 {[%emt 0:00:00]} f5+ {[%emt 0:00:56]} 74. Kd5 {[%emt 0:00:00]} Qf3+ {[%emt 0:01:46]} 75. Ke6 {[%emt 0:00:04]} Qc6+ {[%emt 0:00:18]} 76. Ke7 {[%emt 0:00:53]} g2 {[%emt 0:00:23]} 77. Qg7+ {[%emt 0:00:48]} Qg6 {[%emt 0:00:30]} 78. Qd4 {[%emt 0:00:49]} Kh5 {[%emt 0:00:45]} 79. Qh8+ {[%emt 0:00:11]} Kg4 {[%emt 0:00:17]} 80. Qd4+ {[%emt 0:00:15]} f4 {[%emt 0:00:41]} 81. Qd1+ {[%emt 0:00:27]} f3 {[%emt 0:01:00]} 82. Qd4+ {[%emt 0:00:11]} Kg3 {[%emt 0:00:06]} 83. Qe5+ {[%emt 0:00:21]} Kh4 {[%emt 0:00:21]} 84. Qf4+ {[%emt 0:01:23]} Kh3 {[%emt 0:01:24]} 85. Qxf3+ {[%emt 0:00:10]} Kh2 {[%emt 0:00:00]} 86. Qf4+ {[%emt 0:00:22]} Qg3 {[%emt 0:00:17]} 87. Qh6+ {[%emt 0:00:27]} Qh3 {[%emt 0:00:02]} 88. Qd2 {[%emt 0:00:49]} Kh1 {[%emt 0:01:02]} 89. Qd5 {[%emt 0:00:06]} Qxa3+ {[%emt 0:00:31]} 90. Kf6 {[%emt 0:00:03]} Qh3 {[%emt 0:00:16]} 91. Qa8 {[%emt 0:02:27]} a5 {[%emt 0:00:30]} 92. Ke5 {[%emt 0:01:09]} Kh2 {[%emt 0:00:13]} 93. Kf4 {[%emt 0:00:07]} g1=Q {[%emt 0:00:23]} 94. Ke5 {[%emt 0:00:49]} 0-1

[Event "World Junior U20 Girls 2018"]
[Site "Gebze"]
[Date "2018.09.07"]
[Round "3"]
[White "Celik, Eda"]
[Black "Catal, Uktenur"]
[Result "1/2-1/2"]
[ECO "A08"]
[WhiteElo "1970"]
[BlackElo "1809"]
[Annotator "NA"]
[PlyCount "114"]
[EventDate "2018.09.05"]
[EventType "swiss"]
[EventCountry "TUR"]
[SourceTitle "playchess.com"]
[Source "ChessBase"]
[SourceQuality "1"]
[TimeControl "40/5400+30:1800+30"]

1. e4 e6 2. d3 d5 3. Nd2 c5 4. Ngf3 Nc6 5. g3 g6 6. Bg2 Bg7 7. O-O Nge7 8. Re1 O-O 9. e5 Qc7 10. Qe2 g5 11. Nxg5 Qxe5 12. Qxe5 Bxe5 13. c3 Bg7 14. Nb3 {[%emt 0:38:00]} b6 {[%emt 0:11:00]} 15. f4 {[%emt 0:07:30]} a5 {[%emt 0:12:30]} 16. a4 {[%emt 0:05:30]} Ba6 {[%emt 0:00:30]} 17. Bf1 {[%emt 0:02:30]} Rfe8 {[%emt 0:13:30]} 18. Nf3 {[%emt 0:02:30]} Ng6 {[%emt 0:07:30]} 19. Be3 {[%emt 0:04:30]} e5 {[%emt 0:09:30]} 20. f5 {[%emt 0:02:30]} Nge7 {[%emt 0:00:30]} 21. g4 {[%emt 0:00:30]} d4 {[%emt 0:03:30]} 22. cxd4 {[%emt 0:06:30]} exd4 {[%emt 0:00:30]} 23. Bg5 {[%emt 0:00:30]} Nd5 {[%emt 0:02:30]} 24. Nbd2 {[%emt 0:12:06]} h6 {[%emt 0:04:30]} 25. f6 {[%emt 0:04:51]} Bf8 {[%emt 0:02:30]} 26. Bh4 {[%emt 0:00:52]} Ne3 {[%emt 0:00:30]} 27. Nc4 {[%emt 0:01:09]} Bxc4 {[%emt 0:02:00]} 28. dxc4 {[%emt 0:00:30]} Nb4 {[%emt 0:01:30]} 29. Rac1 {[%emt 0:01:38]} Rad8 {[%emt 0:17:19]} 30. g5 {[%emt 0:02:50]} Nf5 {[%emt 0:04:39]} 31. Bf2 {[%emt 0:01:58]} hxg5 {[%emt 0:00:46]} 32. Nxg5 {[%emt 0:01:58]} Bh6 {[%emt 0:01:33]} 33. h4 {[%emt 0:00:45]} Bxg5 {[%emt 0:03:38]} 34. hxg5 {[%emt 0:01:08]} Ne3 {[%emt 0:00:43]} 35. Bxe3 {[%emt 0:03:07]} dxe3 {[%emt 0:00:14]} 36. Rc3 {[%emt 0:00:23]} Re5 {[%emt 0:03:08]} 37. Rexe3 {[%emt 0:03:29]} Rxg5+ {[%emt 0:00:28]} 38. Rg3 {[%emt 0:00:30]} Rg6 {[%emt 0:00:54]} 39. Rce3 {[%emt 0:01:46]} Rd6 {[%emt 0:03:46]} 40. Rxg6+ {[%emt 0:04:31]} fxg6 {[%emt 0:00:30]} 41. Re7 {[%emt 0:12:09]} Rxf6 {[%emt 0:02:00]} 42. Rb7 {[%emt 0:01:09]} Kf8 {[%emt 0:06:30]} 43. Be2 {[%emt 0:01:07]} Nc2 {[%emt 0:01:30]} 44. Bd3 {[%emt 0:01:20]} Nd4 {[%emt 0:01:30]} 45. Kg2 {[%emt 0:01:29]} Ne6 {[%emt 0:01:30]} 46. Kg3 {[%emt 0:01:33]} Nf4 {[%emt 0:05:30]} 47. Be4 {[%emt 0:01:01]} Ne2+ {[%emt 0:00:30]} 48. Kg2 {[%emt 0:00:25]} Re6 {[%emt 0:01:30]} 49. Bd5 {[%emt 0:02:42]} Rf6 {[%emt 0:03:03]} 50. Bf3 {[%emt 0:02:45]} Nf4+ {[%emt 0:01:42]} 51. Kg3 {[%emt 0:00:30]} Nd3 {[%emt 0:00:24]} 52. b3 {[%emt 0:01:25]} Ne1 {[%emt 0:02:27]} 53. Be4 {[%emt 0:01:44]} g5 {[%emt 0:03:20]} 54. Rb8+ {[%emt 0:02:08]} Kg7 {[%emt 0:00:30]} 55. Rb7+ {[%emt 0:00:30]} Kf8 {[%emt 0:01:06]} 56. Rb8+ {[%emt 0:00:30]} Kg7 {[%emt 0:00:52]} 57. Rb7+ {[%emt 0:00:36]} Kf8 {[%emt 0:02:22]} 1/2-1/2

[Event "World Junior U20 Girls 2018"]
[Site "Gebze"]
[Date "2018.09.07"]
[Round "3"]
[White "Vujcic, Milena"]
[Black "Pychova, Nela"]
[Result "1/2-1/2"]
[ECO "C42"]
[WhiteElo "1955"]
[BlackElo "2173"]
[Annotator "NA"]
[PlyCount "106"]
[EventDate "2018.09.05"]
[EventType "swiss"]
[EventCountry "TUR"]
[SourceTitle "playchess.com"]
[Source "ChessBase"]
[SourceQuality "1"]
[TimeControl "40/5400+30:1800+30"]

1. e4 {[%emt 0:00:30]} e5 {[%emt 0:00:30]} 2. Nf3 {[%emt 0:00:30]} Nf6 {[%emt 0:00:30]} 3. Nxe5 {[%emt 0:00:30]} d6 {[%emt 0:00:00]} 4. Nf3 {[%emt 0:00:00]} Nxe4 {[%emt 0:00:00]} 5. d4 {[%emt 0:00:00]} d5 {[%emt 0:00:30]} 6. Bd3 {[%emt 0:00:00]} Bd6 {[%emt 0:00:00]} 7. O-O {[%emt 0:00:00]} O-O {[%emt 0:00:00]} 8. c4 {[%emt 0:00:00]} c6 {[%emt 0:00:30]} 9. Nc3 {[%emt 0:00:00]} Nxc3 {[%emt 0:02:30]} 10. bxc3 {[%emt 0:00:30]} dxc4 {[%emt 0:06:30]} 11. Bxc4 {[%emt 0:05:30] LiveBook: 165 Games} Bg4 {[%emt 0:00:30]} 12. Qd3 {[%emt 0:04:30]} Bh5 {[%emt 0:04:30]} 13. Ne5 {[%emt 0:30:30]} b5 {[%emt 0:28:30]} 14. Qh3 {[%emt 0:01:30]} Bxe5 $11 {[%emt 0:10:30]} 15. dxe5 {[%emt 0:00:30]} bxc4 {[%emt 0:00:30]} 16. Qxh5 {[%emt 0:00:30]} Qa5 {[%emt 0:00:30]} 17. Qe2 {[%emt 0:08:30]} Qxc3 {[%emt 0:08:30]} 18. Bb2 {[%emt 0:00:30]} Qd3 {[%emt 0:00:30]} 19. Qxd3 {[%emt 0:01:30]} cxd3 {[%emt 0:00:00]} 20. Rfd1 {[%emt 0:00:00]} Rd8 {[%emt 0:00:00]} 21. Rac1 {[%emt 0:00:00]} Rd5 {[%emt 0:07:30]} 22. Rc3 {[%emt 0:05:30]} Rxe5 {[%emt 0:12:30]} 23. Rcxd3 {[%emt 0:00:30]} Re8 {[%emt 0:00:00]} 24. Rd8 {[%emt 0:07:30]} Na6 {[%emt 0:01:00]} 25. Rxa8 {[%emt 0:00:00]} Rxa8 {[%emt 0:00:00]} 26. Rd6 {[%emt 0:01:00]} Rc8 {[%emt 0:02:00]} 27. Rd7 {[%emt 0:02:30]} Nc7 {[%emt 0:05:30]} 28. Be5 {[%emt 0:03:30]} Nd5 {[%emt 0:00:30]} 29. Rxa7 {[%emt 0:01:30]} f6 {[%emt 0:03:30]} 30. Bd6 {[%emt 0:01:30]} c5 {[%emt 0:04:18]} 31. Ra5 {[%emt 0:02:30]} Nb4 {[%emt 0:03:06]} 32. Bxc5 {[%emt 0:07:30]} Nxa2 {[%emt 0:01:21]} 33. Rxa2 {[%emt 0:00:30]} Rxc5 {[%emt 0:00:06]} 34. g3 {[%emt 0:00:30]} Rc7 {[%emt 0:02:01]} 35. Kg2 {[%emt 0:00:30]} Kf7 {[%emt 0:00:04]} 36. Rb2 {[%emt 0:00:30]} g5 {[%emt 0:01:38]} 37. h3 {[%emt 0:00:30]} Kg6 {[%emt 0:00:13]} 38. Ra2 {[%emt 0:01:30]} h5 {[%emt 0:01:52]} 39. Rb2 {[%emt 0:01:30]} Rc4 {[%emt 0:00:33]} 40. Ra2 {[%emt 0:00:00]} Rc5 {[%emt 0:00:00]} 41. Ra6 {[%emt 0:02:00]} Kf5 {[%emt 0:10:48]} 42. Ra4 {[%emt 0:00:30]} Rc2 {[%emt 0:07:30]} 43. Ra5+ {[%emt 0:05:30]} Kg6 {[%emt 0:00:30]} 44. Ra6 {[%emt 0:00:00]} Rc4 {[%emt 0:01:30]} 45. Rb6 {[%emt 0:00:00]} h4 {[%emt 0:01:30]} 46. g4 {[%emt 0:00:30]} Kf7 {[%emt 0:00:30]} 47. Ra6 {[%emt 0:01:30]} Rc5 {[%emt 0:02:30]} 48. Rb6 {[%emt 0:00:30]} f5 {[%emt 0:01:30]} 49. gxf5 {[%emt 0:02:30]} Rxf5 {[%emt 0:00:30]} 50. Ra6 {[%emt 0:00:30]} Rf6 {[%emt 0:02:33]} 51. Ra5 {[%emt 0:00:00]} Kg6 {[%emt 0:01:05]} 52. Rb5 {[%emt 0:00:00]} Rf4 {[%emt 0:01:01]} 53. Ra5 {[%emt 0:00:30]} Rf6 {[%emt 0:01:55]} 1/2-1/2

[Event "World Junior U20 Girls 2018"]
[Site "Gebze"]
[Date "2018.09.07"]
[Round "3"]
[White "Kyrkjebo, Hanna B"]
[Black "Du, Yuxin"]
[Result "0-1"]
[ECO "B12"]
[WhiteElo "1947"]
[BlackElo "2146"]
[Annotator "NA"]
[PlyCount "62"]
[EventDate "2018.09.05"]
[EventType "swiss"]
[EventCountry "TUR"]
[SourceTitle "playchess.com"]
[Source "ChessBase"]
[SourceQuality "1"]
[TimeControl "40/5400+30:1800+30"]

1. e4 {Postny,E} c6 2. d4 d5 3. e5 Bf5 4. Nf3 e6 5. Be2 c5 6. Be3 Qb6 7. Nc3 Qxb2 {B12: Caro-Kann: Advance Variation} 8. Qb1 {LiveBook: 23 Games} (8. Nb5 $1 $14 Kd8 9. dxc5 Bxc2 10. Qc1 Qxc1+ 11. Rxc1) 8... Qxb1+ 9. Rxb1 c4 10. Rxb7 Nc6 11. Kd2 {[%emt 0:30:30]} Bb4 {[%emt 0:20:30]} 12. Rb1 {[%emt 0:00:30]} Ba5 {[%emt 0:03:30]} 13. R7b5 $146 {[%emt 0:07:30]} ({Predecessor:} 13. g4 Bxg4 14. Rxf7 Bxf3 15. Rxf3 {0-1 (50) Inarkiev,E (2669)-Eljanov,P (2751) Astrakhan 2010 CBM 137 [Postny,E]}) 13... h6 {[%emt 0:03:30]} 14. Nh4 {[%emt 0:22:30]} Bh7 {[%emt 0:05:30]} 15. f4 {[%emt 0:03:30]} Nge7 {[%emt 0:01:30]} 16. Bg4 {[%emt 0:08:30]} O-O {[%emt 0:05:30]} 17. Bh3 {[%emt 0:03:30]} h5 $11 {[%emt 0:06:30]} (17... Rfb8 $19 18. Rxb8+ Rxb8 19. Rxb8+ Nxb8) 18. Rf1 {[%emt 0:05:34]} Rab8 {[%emt 0:00:30]} 19. Rbb1 {[%emt 0:00:30]} Be4 {[%emt 0:00:30]} 20. a3 {[%emt 0:00:30]} Rxb1 {[%emt 0:00:30]} 21. Rxb1 {[%emt 0:00:30]} Rb8 {[%emt 0:00:30]} 22. Rxb8+ {[%emt 0:00:30]} Nxb8 {[%emt 0:00:30]} 23. Bf2 {[%emt 0:00:30]} Nbc6 {[%emt 0:00:30]} 24. Nf3 {[%emt 0:15:00]} Bxf3 {[%emt 0:17:30]} 25. gxf3 {[%emt 0:00:02]} g6 {[%emt 0:00:30]} 26. f5 {[%emt 0:02:44]} exf5 {[%emt 0:01:30]} 27. f4 {[%emt 0:00:17]} Nc8 {[%emt 0:00:30]} 28. Be1 {[%emt 0:00:32]} Nxd4 {[%emt 0:00:30]} 29. Kd1 {[%emt 0:00:40]} Nf3 {[%emt 0:01:30]} 30. Bd2 {[%emt 0:00:58]} Nxd2 {[%emt 0:00:00]} 31. Kxd2 {[%emt 0:00:09]} d4 {[%emt 0:00:00]} 0-1

[Event "World Junior U20 Girls 2018"]
[Site "Gebze"]
[Date "2018.09.07"]
[Round "3"]
[White "Kyrkjebo, Marte B"]
[Black "Can, Isil"]
[Result "1/2-1/2"]
[ECO "C45"]
[WhiteElo "1935"]
[BlackElo "1798"]
[Annotator "NA"]
[PlyCount "119"]
[EventDate "2018.09.05"]
[EventType "swiss"]
[EventCountry "TUR"]
[SourceTitle "playchess.com"]
[Source "ChessBase"]
[SourceQuality "1"]
[TimeControl "40/5400+30:1800+30"]

1. e4 e5 2. Nf3 Nc6 3. d4 exd4 4. Nxd4 Bc5 5. Nb3 Bb6 6. Nc3 Nf6 7. Qe2 d6 8. Be3 Be6 9. O-O-O Qe7 10. f3 Ne5 {[%emt 0:21:00]} 11. Nd4 {[%emt 0:28:30]} Bc4 {[%emt 0:02:30]} 12. Qf2 {[%emt 0:04:30]} Bxf1 {[%emt 0:02:30]} 13. Qxf1 {[%emt 0:03:30]} g6 {[%emt 0:06:30]} 14. Bg5 {[%emt 0:06:30]} c6 {[%emt 0:11:30]} 15. f4 {[%emt 0:07:30]} Ned7 {[%emt 0:01:30]} 16. e5 {[%emt 0:04:30]} O-O-O {[%emt 0:01:30]} 17. Nxc6 {[%emt 0:09:30]} bxc6 {[%emt 0:01:30]} 18. exf6 {[%emt 0:01:30]} Qe3+ {[%emt 0:02:30]} 19. Kb1 {[%emt 0:00:30]} Nc5 {[%emt 0:01:30]} 20. Re1 {[%emt 0:04:30]} Qd4 {[%emt 0:01:30]} 21. Qf3 {[%emt 0:02:30]} Kc7 {[%emt 0:02:30]} 22. Re7+ {[%emt 0:00:30]} Rd7 {[%emt 0:00:30]} 23. Rd1 {[%emt 0:00:30]} Qb4 {[%emt 0:00:30]} 24. f5 {[%emt 0:09:14]} Nb7 {[%emt 0:05:30]} 25. Qh3 {[%emt 0:05:05]} Rhd8 {[%emt 0:02:30]} 26. Qxh7 {[%emt 0:03:18]} Qg4 {[%emt 0:02:30]} 27. Bc1 {[%emt 0:03:27]} Qxf5 {[%emt 0:05:30]} 28. Qxf7 {[%emt 0:01:50]} Rxe7 {[%emt 0:00:00]} 29. Qxe7+ {[%emt 0:00:46]} Rd7 {[%emt 0:00:00]} 30. Qf8 {[%emt 0:00:41]} Nd8 {[%emt 0:00:30]} 31. Re1 {[%emt 0:01:48]} Bd4 {[%emt 0:00:30]} 32. Re7 {[%emt 0:02:26]} Qxf6 {[%emt 0:03:30]} 33. Rxd7+ {[%emt 0:00:38]} Kxd7 {[%emt 0:00:30]} 34. Qxf6 {[%emt 0:00:50]} Bxf6 {[%emt 0:00:00]} 35. Ne4 {[%emt 0:00:36]} Be5 {[%emt 0:00:00]} 36. h3 {[%emt 0:01:21]} Ne6 {[%emt 0:00:30]} 37. Be3 {[%emt 0:00:50]} a6 {[%emt 0:00:30]} 38. g4 {[%emt 0:00:32]} Nf4 {[%emt 0:00:30]} 39. Nf2 {[%emt 0:00:42]} d5 {[%emt 0:01:30]} 40. Nd3 {[%emt 0:00:00]} Nxd3 {[%emt 0:00:30]} 41. cxd3 {[%emt 0:00:56]} Bf6 {[%emt 0:00:30]} 42. Kc2 {[%emt 0:05:30]} Kd6 {[%emt 0:01:30]} 43. d4 {[%emt 0:03:30]} g5 {[%emt 0:01:30]} 44. Kb3 {[%emt 0:02:30]} Kc7 {[%emt 0:00:30]} 45. Kb4 {[%emt 0:01:49]} Kb6 {[%emt 0:02:30]} 46. Ka4 {[%emt 0:03:18]} Be7 {[%emt 0:09:30]} 47. b4 {[%emt 0:04:11]} Bf6 {[%emt 0:01:30]} 48. Kb3 {[%emt 0:01:00]} Be7 {[%emt 0:02:30]} 49. a4 {[%emt 0:01:35]} Bf6 {[%emt 0:02:30]} 50. Kc2 {[%emt 0:02:09]} Be7 {[%emt 0:07:30]} 51. Bd2 {[%emt 0:00:58]} Kc7 {[%emt 0:01:30]} 52. Kd3 {[%emt 0:00:30]} Kd7 {[%emt 0:00:30]} 53. Ke3 {[%emt 0:01:12]} Ke6 {[%emt 0:00:00]} 54. Kf3 {[%emt 0:01:19]} Kf6 {[%emt 0:04:00]} 55. Kg2 {[%emt 0:02:46]} Kg6 {[%emt 0:03:30]} 56. Be1 {[%emt 0:00:58]} Bf6 {[%emt 0:00:30]} 57. Bf2 {[%emt 0:01:02]} Be7 {[%emt 0:00:30]} 58. Be1 {[%emt 0:03:10]} Bf6 {[%emt 0:00:30]} 59. Bf2 {[%emt 0:00:30]} Be7 {[%emt 0:03:30]} 60. Be1 {[%emt 0:01:38]} 1/2-1/2

[Event "World Junior U20 Girls 2018"]
[Site "Gebze"]
[Date "2018.09.07"]
[Round "3"]
[White "Tian, Shi Yuan"]
[Black "Yorgun, Yaren Naz"]
[Result "0-1"]
[ECO "D36"]
[WhiteElo "1923"]
[BlackElo "1751"]
[Annotator "NA"]
[PlyCount "106"]
[EventDate "2018.09.05"]
[EventType "swiss"]
[EventCountry "TUR"]
[SourceTitle "playchess.com"]
[Source "ChessBase"]
[SourceQuality "1"]
[TimeControl "40/5400+30:1800+30"]

1. d4 d5 2. c4 e6 3. Nc3 Nf6 4. cxd5 exd5 5. Bg5 Nbd7 6. e3 $14 c6 7. Bd3 Be7 8. Qc2 O-O 9. Nge2 Re8 10. O-O Nf8 11. Rae1 Nh5 12. Bxe7 Qxe7 13. Bf5 Bxf5 14. Qxf5 Nf6 {[%emt 0:27:00]} 15. Qc2 {[%emt 0:23:30]} Ne6 {[%emt 0:07:30]} 16. f3 {[%emt 0:08:30]} c5 {[%emt 0:14:30]} 17. Qd2 {[%emt 0:05:30]} Rad8 {[%emt 0:04:30]} 18. Ng3 {[%emt 0:14:30]} cxd4 {[%emt 0:08:30]} 19. Nf5 {[%emt 0:00:30]} Qb4 {[%emt 0:00:30]} 20. Nxd4 {[%emt 0:01:30]} Nxd4 {[%emt 0:00:30]} 21. Qxd4 {[%emt 0:04:30]} Qxd4 {[%emt 0:03:30]} 22. exd4 {[%emt 0:01:30]} Kf8 {[%emt 0:03:30]} 23. Kf2 {[%emt 0:00:30]} Ng8 {[%emt 0:00:30]} 24. Rxe8+ {[%emt 0:00:30]} Kxe8 {[%emt 0:10:30]} 25. Re1+ {[%emt 0:03:30]} Ne7 {[%emt 0:00:30]} 26. Re5 {[%emt 0:01:30]} f6 {[%emt 0:00:30]} 27. Re2 {[%emt 0:00:30]} Kf7 {[%emt 0:01:30]} 28. Ke3 {[%emt 0:00:30]} Nc6 {[%emt 0:00:37]} 29. Kd3 {[%emt 0:00:30]} Nb4+ {[%emt 0:02:53]} 30. Kd2 {[%emt 0:00:30]} Nc6 {[%emt 0:00:07]} 31. Re3 {[%emt 0:12:30]} Nxd4 {[%emt 0:04:57]} 32. Rd3 {[%emt 0:00:00]} Nc6 {[%emt 0:00:00]} 33. Rxd5 {[%emt 0:01:00]} Rxd5+ {[%emt 0:00:26]} 34. Nxd5 {[%emt 0:00:30]} Ke6 {[%emt 0:00:44]} 35. Nc7+ {[%emt 0:02:30]} Kd7 {[%emt 0:01:23]} 36. Nb5 {[%emt 0:00:30]} a6 {[%emt 0:06:25]} 37. Nc3 {[%emt 0:00:30]} Ne5 {[%emt 0:00:37]} 38. b3 {[%emt 0:00:30]} Kd6 {[%emt 0:02:31]} 39. Ne4+ {[%emt 0:03:30]} Kd5 {[%emt 0:02:28]} 40. Ng3 {[%emt 0:00:00]} Ke6 {[%emt 0:00:00]} 41. Ke3 {[%emt 0:03:00]} Nc6 {[%emt 0:04:52]} 42. Ne2 {[%emt 0:08:30]} Nb4 {[%emt 0:04:30]} 43. a4 {[%emt 0:03:30]} Ke5 {[%emt 0:05:30]} 44. f4+ {[%emt 0:01:30]} Kd5 {[%emt 0:02:13]} 45. Nc3+ {[%emt 0:00:30]} Kd6 {[%emt 0:01:33]} 46. g3 {[%emt 0:03:30]} Nd5+ {[%emt 0:03:51]} 47. Nxd5 {[%emt 0:02:30]} Kxd5 {[%emt 0:00:02]} 48. f5 {[%emt 0:00:30]} Ke5 {[%emt 0:00:44]} 49. g4 {[%emt 0:00:00]} h5 {[%emt 0:02:00]} 50. Kf3 {[%emt 0:03:00]} hxg4+ {[%emt 0:02:14]} 51. Kxg4 {[%emt 0:00:30]} a5 {[%emt 0:00:38]} 52. Kh5 {[%emt 0:01:30]} Kxf5 {[%emt 0:00:09]} 53. h4 {[%emt 0:00:30]} g5 {[%emt 0:00:00]} 0-1